[Event "Titled Tuesday Blitz March 14 Early 2023"]
[White "Botez, Alexandra"]
[Black "Shapiro, Viktor"]
[WhiteFideId "2603365"]
[BlackFideId "4175700"]
[WhiteElo "2059"]
[BlackElo "2152"]
[Result "1-0"]
[Round "04"]
[TimeControl "180+2"]
[Date "2023.03.14"]
[WhiteClock "0:00:28"]
[BlackClock "0:00:06"]

1. d4 {[%clk 0:03:00]}  Nf6 {[%clk 0:03:00]} 2. c4 {[%clk 0:03:00]}  e6 {[%clk 0:03:00]} 3. Nf3 {[%clk 0:02:59]}  c5 {[%clk 0:02:58]} 4. e3 {[%clk 0:02:57]}  Be7 {[%clk 0:02:53]} 5. Nc3 {[%clk 0:02:56]}  O-O {[%clk 0:02:53]} 6. Be2 {[%clk 0:02:56]}  d6 {[%clk 0:02:52]} 7. O-O {[%clk 0:02:56]}  Nc6 {[%clk 0:02:52]} 8. a3 {[%clk 0:02:55]}  a6 {[%clk 0:02:51]} 9. Rb1 {[%clk 0:02:55]}  Rb8 {[%clk 0:02:51]} 10. b4 {[%clk 0:02:55]}  cxb4 {[%clk 0:02:52]} 11. axb4 {[%clk 0:02:55]}  d5 {[%clk 0:02:47]} 12. b5 {[%clk 0:02:38]}  Nb4 {[%clk 0:02:44]} 13. c5 {[%clk 0:02:35]}  a5 {[%clk 0:02:40]} 14. Ba3 {[%clk 0:02:30]}  b6 {[%clk 0:02:40]} 15. Ne5 {[%clk 0:02:23]}  bxc5 {[%clk 0:02:22]} 16. Bxb4 {[%clk 0:02:22]}  cxb4 {[%clk 0:02:20]} 17. Nc6 {[%clk 0:02:22]}  Qc7 {[%clk 0:02:12]} 18. Nxb8 {[%clk 0:02:18]}  bxc3 {[%clk 0:02:12]} 19. Nc6 {[%clk 0:02:17]}  Bd6 {[%clk 0:02:00]} 20. Qa4 {[%clk 0:02:04]}  Bxh2+ {[%clk 0:01:51]} 21. Kh1 {[%clk 0:02:04]}  Bd6 {[%clk 0:01:49]} 22. b6 {[%clk 0:01:53]}  Qd7 {[%clk 0:01:47]} 23. Bb5 {[%clk 0:01:52]}  Ne4 {[%clk 0:01:39]} 24. Rbc1 {[%clk 0:01:24]}  Bb7 {[%clk 0:01:37]} 25. Nxa5 {[%clk 0:01:19]}  Qd8 {[%clk 0:01:34]} 26. g3 {[%clk 0:01:19]}  Qxb6 {[%clk 0:01:21]} 27. Nxb7 {[%clk 0:01:11]}  Qxb7 {[%clk 0:01:21]} 28. Bd3 {[%clk 0:01:11]}  Ra8 {[%clk 0:01:11]} 29. Qc2 {[%clk 0:01:09]}  Ba3 {[%clk 0:01:04]} 30. Bxe4 {[%clk 0:01:02]}  dxe4 {[%clk 0:01:03]} 31. Rb1 {[%clk 0:01:00]}  Bb2 {[%clk 0:01:02]} 32. Qxc3 {[%clk 0:00:53]}  Rb8 {[%clk 0:00:56]} 33. Qc2 {[%clk 0:00:50]}  h5 {[%clk 0:00:36]} 34. Kg2 {[%clk 0:00:49]}  h4 {[%clk 0:00:32]} 35. Rh1 {[%clk 0:00:44]}  hxg3 {[%clk 0:00:30]} 36. fxg3 {[%clk 0:00:44]}  Qb5 {[%clk 0:00:21]} 37. Qf2 {[%clk 0:00:40]}  f5 {[%clk 0:00:12]} 38. Rhd1 {[%clk 0:00:38]}  Qa4 {[%clk 0:00:06]} 39. Rd2 {[%clk 0:00:35]}  Rb3 {[%clk 0:00:06]} 40. Rdxb2 {[%clk 0:00:31]}  Rxb2 {[%clk 0:00:07]} 41. Rxb2 {[%clk 0:00:31]}  Qd1 {[%clk 0:00:07]} 42. Rb8+ {[%clk 0:00:30]}  Kh7 {[%clk 0:00:08]} 43. Rb2 {[%clk 0:00:30]}  Qc1 {[%clk 0:00:06]} 44. Qe2 {[%clk 0:00:30]}  Qc3 {[%clk 0:00:05]} 45. Qh5+ {[%clk 0:00:29]}  Kg8 {[%clk 0:00:06]} 46. Rb8+ {[%clk 0:00:28]} 1-0


[Site "https://www.chess.com"]

[Event "Titled Tuesday Blitz March 14 Early 2023"]
[White "Ruge, Edison"]
[Black "Zarnicki, Pablo"]
[WhiteFideId "4401000"]
[BlackFideId "100137"]
[WhiteElo "2175"]
[BlackElo "2468"]
[Result "0-1"]
[Round "04"]
[TimeControl "180+2"]
[Date "2023.03.14"]
[WhiteClock "0:00:17"]
[BlackClock "0:00:19"]

1. e4 {[%clk 0:02:58]}  c5 {[%clk 0:02:09]} 2. Nf3 {[%clk 0:02:55]}  d6 {[%clk 0:02:09]} 3. d3 {[%clk 0:02:56]}  Nf6 {[%clk 0:02:09]} 4. Nbd2 {[%clk 0:02:57]}  g6 {[%clk 0:02:10]} 5. g3 {[%clk 0:02:57]}  Bg7 {[%clk 0:02:11]} 6. Bg2 {[%clk 0:02:57]}  O-O {[%clk 0:02:12]} 7. h4 {[%clk 0:02:55]}  Nc6 {[%clk 0:02:13]} 8. h5 {[%clk 0:02:55]}  Bg4 {[%clk 0:02:13]} 9. h6 {[%clk 0:02:54]}  Bh8 {[%clk 0:02:13]} 10. c3 {[%clk 0:02:48]}  d5 {[%clk 0:02:14]} 11. Qe2 {[%clk 0:02:46]}  dxe4 {[%clk 0:02:13]} 12. dxe4 {[%clk 0:02:45]}  Ne5 {[%clk 0:02:13]} 13. O-O {[%clk 0:02:41]}  Qd3 {[%clk 0:02:10]} 14. Qxd3 {[%clk 0:02:29]}  Nxd3 {[%clk 0:02:10]} 15. Rd1 {[%clk 0:01:52]}  Rad8 {[%clk 0:02:03]} 16. Kf1 {[%clk 0:01:23]}  Rd7 {[%clk 0:01:53]} 17. Ke2 {[%clk 0:01:22]}  Rfd8 {[%clk 0:01:41]} 18. Ke3 {[%clk 0:01:09]}  b5 {[%clk 0:01:31]} 19. Bf1 {[%clk 0:01:06]}  c4 {[%clk 0:01:26]} 20. Be2 {[%clk 0:01:03]}  Nxe4 {[%clk 0:01:21]} 21. Nxe4 {[%clk 0:01:00]}  f5 {[%clk 0:01:05]} 22. Neg5 {[%clk 0:00:52]}  Bf6 {[%clk 0:01:03]} 23. Bxd3 {[%clk 0:00:48]}  Rxd3+ {[%clk 0:01:03]} 24. Rxd3 {[%clk 0:00:43]}  Rxd3+ {[%clk 0:01:04]} 25. Ke2 {[%clk 0:00:41]}  e5 {[%clk 0:01:04]} 26. Ke1 {[%clk 0:00:25]}  e4 {[%clk 0:00:54]} 27. Be3 {[%clk 0:00:21]}  Bxf3 {[%clk 0:00:30]} 28. Nxf3 {[%clk 0:00:21]}  exf3 {[%clk 0:00:30]} 29. Bxa7 {[%clk 0:00:19]}  b4 {[%clk 0:00:25]} 30. Rd1 {[%clk 0:00:17]}  bxc3 {[%clk 0:00:25]} 31. Rxd3 {[%clk 0:00:17]}  cxd3 {[%clk 0:00:19]} 32. bxc3 {[%clk 0:00:16]}  Bxc3+ {[%clk 0:00:20]} 33. Kd1 {[%clk 0:00:17]}  Kf7 {[%clk 0:00:20]} 34. Be3 {[%clk 0:00:17]}  Ke6 {[%clk 0:00:20]} 35. a4 {[%clk 0:00:18]}  Kd5 {[%clk 0:00:20]} 36. Kc1 {[%clk 0:00:17]}  Kc4 {[%clk 0:00:20]} 37. Kd1 {[%clk 0:00:17]}  Kb3 {[%clk 0:00:21]} 38. Bd2 {[%clk 0:00:17]}  Bd4 {[%clk 0:00:18]} 39. Be3 {[%clk 0:00:17]}  Bxe3 {[%clk 0:00:18]} 40. fxe3 {[%clk 0:00:17]}  f2 {[%clk 0:00:19]} 41. Kd2 {[%clk 0:00:17]}  f1=Q {[%clk 0:00:19]} 0-1


[Site "https://www.chess.com"]

[Event "Titled Tuesday Blitz March 14 Early 2023"]
[White "Horak, Martin"]
[Black "Kowalysko, Roman"]
[WhiteFideId "367095"]
[BlackFideId "30918510"]
[WhiteElo "2091"]
[BlackElo "2234"]
[Result "1-0"]
[Round "04"]
[TimeControl "180+2"]
[Date "2023.03.14"]
[WhiteClock "0:00:08"]
[BlackClock "0:00:10"]

1. d4 {[%clk 0:03:00]}  Nf6 {[%clk 0:02:59]} 2. Nf3 {[%clk 0:03:00]}  g6 {[%clk 0:02:59]} 3. c4 {[%clk 0:03:00]}  Bg7 {[%clk 0:03:00]} 4. e3 {[%clk 0:03:00]}  O-O {[%clk 0:03:00]} 5. Be2 {[%clk 0:03:00]}  d6 {[%clk 0:02:59]} 6. Nc3 {[%clk 0:03:00]}  Bf5 {[%clk 0:02:59]} 7. O-O {[%clk 0:02:52]}  Nbd7 {[%clk 0:03:00]} 8. Nh4 {[%clk 0:02:50]}  Ne4 {[%clk 0:02:57]} 9. Nxe4 {[%clk 0:02:46]}  Bxe4 {[%clk 0:02:58]} 10. f3 {[%clk 0:02:45]}  Bf5 {[%clk 0:02:57]} 11. Nxf5 {[%clk 0:02:46]}  gxf5 {[%clk 0:02:57]} 12. f4 {[%clk 0:02:05]}  Nf6 {[%clk 0:02:55]} 13. Bf3 {[%clk 0:02:00]}  Ne4 {[%clk 0:02:55]} 14. Bd2 {[%clk 0:01:48]}  e6 {[%clk 0:02:54]} 15. Qc2 {[%clk 0:01:44]}  d5 {[%clk 0:02:54]} 16. cxd5 {[%clk 0:01:40]}  exd5 {[%clk 0:02:54]} 17. Bb4 {[%clk 0:01:38]}  Re8 {[%clk 0:02:52]} 18. Rac1 {[%clk 0:01:33]}  c6 {[%clk 0:02:52]} 19. a4 {[%clk 0:01:33]}  Qd7 {[%clk 0:02:39]} 20. Rfe1 {[%clk 0:01:30]}  Bf6 {[%clk 0:02:33]} 21. Ba3 {[%clk 0:01:24]}  Kh8 {[%clk 0:02:28]} 22. b4 {[%clk 0:01:25]}  a6 {[%clk 0:02:22]} 23. Qd3 {[%clk 0:01:13]}  Qe6 {[%clk 0:02:21]} 24. Rb1 {[%clk 0:01:10]}  Rg8 {[%clk 0:02:20]} 25. Bc1 {[%clk 0:01:09]}  Bh4 {[%clk 0:02:19]} 26. Re2 {[%clk 0:01:08]}  Rae8 {[%clk 0:02:14]} 27. b5 {[%clk 0:01:02]}  Qh6 {[%clk 0:02:03]} 28. bxa6 {[%clk 0:00:50]}  Bg3 {[%clk 0:01:53]} 29. h3 {[%clk 0:00:35]}  bxa6 {[%clk 0:01:53]} 30. Bd2 {[%clk 0:00:30]}  Qh4 {[%clk 0:01:44]} 31. Be1 {[%clk 0:00:26]}  Re6 {[%clk 0:01:35]} 32. Bxg3 {[%clk 0:00:22]}  Rxg3 {[%clk 0:01:30]} 33. Rb8+ {[%clk 0:00:17]}  Kg7 {[%clk 0:01:30]} 34. Qa3 {[%clk 0:00:12]}  c5 {[%clk 0:01:16]} 35. dxc5 {[%clk 0:00:10]}  Rxf3 {[%clk 0:00:42]} 36. c6 {[%clk 0:00:10]}  Rxe3 {[%clk 0:00:13]} 37. Qf8+ {[%clk 0:00:10]}  Kf6 {[%clk 0:00:13]} 38. Qh8+ {[%clk 0:00:09]}  Kg6 {[%clk 0:00:10]} 39. Rg8+ {[%clk 0:00:08]}  Kh6 {[%clk 0:00:10]} 40. Qg7+ {[%clk 0:00:08]}  Kh5 {[%clk 0:00:10]} 41. g4+ {[%clk 0:00:06]}  fxg4 {[%clk 0:00:09]} 42. hxg4+ {[%clk 0:00:07]}  Qxg4+ {[%clk 0:00:09]} 43. Qxg4+ {[%clk 0:00:08]}  Kh6 {[%clk 0:00:10]} 44. Rh2+ {[%clk 0:00:08]} 1-0


[Site "https://www.chess.com"]

[Event "Titled Tuesday Blitz March 14 Early 2023"]
[White "Shubenkova, Veronika"]
[Black "Rodriguez Santiago, Jaime"]
[WhiteFideId "44124040"]
[BlackFideId "3100898"]
[WhiteElo "2027"]
[BlackElo "2025"]
[Result "1-0"]
[Round "04"]
[TimeControl "180+2"]
[Date "2023.03.14"]
[WhiteClock "0:02:23"]
[BlackClock "0:01:38"]

1. e4 {[%clk 0:03:00]}  c6 {[%clk 0:03:00]} 2. d4 {[%clk 0:03:00]}  d5 {[%clk 0:03:01]} 3. Nc3 {[%clk 0:03:01]}  dxe4 {[%clk 0:03:01]} 4. Nxe4 {[%clk 0:03:02]}  Nf6 {[%clk 0:03:01]} 5. Nxf6+ {[%clk 0:03:02]}  exf6 {[%clk 0:03:02]} 6. Nf3 {[%clk 0:03:03]}  Bd6 {[%clk 0:03:02]} 7. c3 {[%clk 0:03:04]}  O-O {[%clk 0:03:02]} 8. Be2 {[%clk 0:03:04]}  Re8 {[%clk 0:03:02]} 9. O-O {[%clk 0:03:05]}  Nd7 {[%clk 0:03:02]} 10. h3 {[%clk 0:03:05]}  Nf8 {[%clk 0:03:02]} 11. Be3 {[%clk 0:03:06]}  Be6 {[%clk 0:03:02]} 12. Qd2 {[%clk 0:03:06]}  Qd7 {[%clk 0:03:01]} 13. Rae1 {[%clk 0:03:06]}  Rad8 {[%clk 0:03:01]} 14. Bf4 {[%clk 0:03:05]}  Bxf4 {[%clk 0:02:41]} 15. Qxf4 {[%clk 0:03:06]}  b5 {[%clk 0:02:40]} 16. a3 {[%clk 0:03:03]}  a5 {[%clk 0:02:40]} 17. Bd3 {[%clk 0:03:03]}  Ng6 {[%clk 0:02:39]} 18. Bxg6 {[%clk 0:03:03]}  hxg6 {[%clk 0:02:39]} 19. Nd2 {[%clk 0:03:02]}  g5 {[%clk 0:02:39]} 20. Qg3 {[%clk 0:02:59]}  b4 {[%clk 0:02:30]} 21. axb4 {[%clk 0:02:56]}  axb4 {[%clk 0:02:29]} 22. Re3 {[%clk 0:02:56]}  c5 {[%clk 0:02:27]} 23. Nf3 {[%clk 0:02:50]}  g4 {[%clk 0:02:03]} 24. hxg4 {[%clk 0:02:47]}  Bxg4 {[%clk 0:02:02]} 25. Rxe8+ {[%clk 0:02:44]}  Rxe8 {[%clk 0:02:02]} 26. dxc5 {[%clk 0:02:44]}  bxc3 {[%clk 0:02:02]} 27. bxc3 {[%clk 0:02:45]}  Rc8 {[%clk 0:01:57]} 28. Nh2 {[%clk 0:02:38]}  Be2 {[%clk 0:01:54]} 29. Ra1 {[%clk 0:02:28]}  Rxc5 {[%clk 0:01:44]} 30. Qe3 {[%clk 0:02:24]}  Bb5 {[%clk 0:01:38]} 31. Qxc5 {[%clk 0:02:23]} 1-0


[Site "https://www.chess.com"]

[Event "Titled Tuesday Blitz March 14 Early 2023"]
[White "Quirke, Jeffrey"]
[Black "Barria Santos, Jose Guilherme"]
[WhiteFideId "2013029"]
[BlackFideId "1939300"]
[WhiteElo "2197"]
[BlackElo "2301"]
[Result "1-0"]
[Round "04"]
[TimeControl "180+2"]
[Date "2023.03.14"]
[WhiteClock "0:00:02"]
[BlackClock "0:00:11"]

1. e4 {[%clk 0:02:56]}  c5 {[%clk 0:02:59]} 2. Nc3 {[%clk 0:02:55]}  d6 {[%clk 0:02:59]} 3. f4 {[%clk 0:02:54]}  g6 {[%clk 0:02:58]} 4. Nf3 {[%clk 0:02:53]}  Bg7 {[%clk 0:02:58]} 5. Bb5+ {[%clk 0:02:54]}  Bd7 {[%clk 0:02:58]} 6. a4 {[%clk 0:02:51]}  Nc6 {[%clk 0:02:57]} 7. d3 {[%clk 0:02:48]}  e6 {[%clk 0:02:55]} 8. O-O {[%clk 0:02:47]}  Nge7 {[%clk 0:02:55]} 9. Qe1 {[%clk 0:02:42]}  O-O {[%clk 0:02:55]} 10. Qh4 {[%clk 0:02:34]}  Nd4 {[%clk 0:02:49]} 11. Bxd7 {[%clk 0:02:25]}  Qxd7 {[%clk 0:02:49]} 12. Nxd4 {[%clk 0:02:24]}  cxd4 {[%clk 0:02:43]} 13. Ne2 {[%clk 0:02:24]}  Rac8 {[%clk 0:02:42]} 14. c3 {[%clk 0:02:04]}  dxc3 {[%clk 0:02:42]} 15. bxc3 {[%clk 0:02:04]}  Nc6 {[%clk 0:02:42]} 16. Be3 {[%clk 0:01:58]}  b6 {[%clk 0:02:37]} 17. Ra2 {[%clk 0:01:49]}  Na5 {[%clk 0:02:38]} 18. f5 {[%clk 0:01:36]}  exf5 {[%clk 0:02:32]} 19. exf5 {[%clk 0:01:33]}  Rfe8 {[%clk 0:02:31]} 20. Bd4 {[%clk 0:01:25]}  Bxd4+ {[%clk 0:01:57]} 21. Qxd4 {[%clk 0:01:24]}  Nb3 {[%clk 0:01:45]} 22. Qh4 {[%clk 0:01:19]}  Qe7 {[%clk 0:01:44]} 23. f6 {[%clk 0:01:14]}  Qf8 {[%clk 0:01:43]} 24. Nf4 {[%clk 0:01:04]}  Na5 {[%clk 0:01:09]} 25. Nd5 {[%clk 0:01:01]}  Nc6 {[%clk 0:01:09]} 26. d4 {[%clk 0:00:44]}  Re6 {[%clk 0:00:55]} 27. Raf2 {[%clk 0:00:39]}  Rce8 {[%clk 0:00:41]} 28. Rf3 {[%clk 0:00:39]}  Re4 {[%clk 0:00:41]} 29. Qf2 {[%clk 0:00:22]}  Qh6 {[%clk 0:00:40]} 30. Rh3 {[%clk 0:00:18]}  Qg5 {[%clk 0:00:36]} 31. Rg3 {[%clk 0:00:17]}  Qh6 {[%clk 0:00:32]} 32. Qb2 {[%clk 0:00:12]}  Re2 {[%clk 0:00:30]} 33. Qb5 {[%clk 0:00:12]}  Na5 {[%clk 0:00:16]} 34. Ne7+ {[%clk 0:00:10]}  R2xe7 {[%clk 0:00:17]} 35. fxe7 {[%clk 0:00:11]}  Rxe7 {[%clk 0:00:16]} 36. Qa6 {[%clk 0:00:09]}  Kg7 {[%clk 0:00:15]} 37. Qc8 {[%clk 0:00:08]}  Nb7 {[%clk 0:00:13]} 38. Rgf3 {[%clk 0:00:06]}  Qd2 {[%clk 0:00:11]} 39. Qb8 {[%clk 0:00:03]}  Na5 {[%clk 0:00:11]} 40. Qxd6 {[%clk 0:00:02]}  Nc4 {[%clk 0:00:11]} 41. Qxe7 {[%clk 0:00:02]} 1-0


[Site "https://www.chess.com"]

[Event "Titled Tuesday Blitz March 14 Early 2023"]
[White "Comas Fabrego, Lluis"]
[Black "Fathy, Elameir"]
[WhiteFideId "2200325"]
[BlackFideId "10600396"]
[WhiteElo "2523"]
[BlackElo "2311"]
[Result "1/2-1/2"]
[Round "04"]
[TimeControl "180+2"]
[Date "2023.03.14"]
[WhiteClock "0:00:26"]
[BlackClock "0:00:07"]

1. Nf3 {[%clk 0:03:00]}  d5 {[%clk 0:02:55]} 2. d4 {[%clk 0:03:00]}  Nf6 {[%clk 0:02:55]} 3. c4 {[%clk 0:03:00]}  c6 {[%clk 0:02:54]} 4. cxd5 {[%clk 0:02:59]}  cxd5 {[%clk 0:02:55]} 5. Nc3 {[%clk 0:03:00]}  Nc6 {[%clk 0:02:55]} 6. Bf4 {[%clk 0:03:01]}  a6 {[%clk 0:02:55]} 7. e3 {[%clk 0:03:01]}  Bg4 {[%clk 0:02:55]} 8. Be2 {[%clk 0:03:01]}  e6 {[%clk 0:02:55]} 9. O-O {[%clk 0:03:01]}  Bd6 {[%clk 0:02:56]} 10. Bxd6 {[%clk 0:03:00]}  Qxd6 {[%clk 0:02:57]} 11. Ne1 {[%clk 0:03:00]}  Bxe2 {[%clk 0:02:56]} 12. Qxe2 {[%clk 0:03:01]}  O-O {[%clk 0:02:57]} 13. Nd3 {[%clk 0:02:58]}  Rfc8 {[%clk 0:02:57]} 14. Rfc1 {[%clk 0:02:58]}  Rc7 {[%clk 0:02:57]} 15. Rc2 {[%clk 0:02:56]}  Rac8 {[%clk 0:02:55]} 16. Rac1 {[%clk 0:02:56]}  b6 {[%clk 0:02:48]} 17. h3 {[%clk 0:02:56]}  h6 {[%clk 0:02:45]} 18. Na4 {[%clk 0:02:41]}  Nd7 {[%clk 0:02:40]} 19. Qd2 {[%clk 0:02:32]}  Na5 {[%clk 0:01:37]} 20. b3 {[%clk 0:02:31]}  Nb7 {[%clk 0:01:24]} 21. Rxc7 {[%clk 0:01:52]}  Rxc7 {[%clk 0:01:25]} 22. Rxc7 {[%clk 0:01:51]}  Qxc7 {[%clk 0:01:25]} 23. Qc3 {[%clk 0:01:51]}  Qxc3 {[%clk 0:01:25]} 24. Nxc3 {[%clk 0:01:52]}  Kf8 {[%clk 0:01:23]} 25. f4 {[%clk 0:01:52]}  Ke7 {[%clk 0:01:21]} 26. Kf2 {[%clk 0:01:52]}  f6 {[%clk 0:01:18]} 27. g4 {[%clk 0:01:51]}  Kd6 {[%clk 0:01:17]} 28. Kf3 {[%clk 0:01:50]}  e5 {[%clk 0:01:02]} 29. dxe5+ {[%clk 0:01:13]}  fxe5 {[%clk 0:01:03]} 30. e4 {[%clk 0:01:09]}  d4 {[%clk 0:00:43]} 31. Ne2 {[%clk 0:00:39]}  Nbc5 {[%clk 0:00:28]} 32. Nec1 {[%clk 0:00:39]}  g5 {[%clk 0:00:19]} 33. f5 {[%clk 0:00:31]}  Nf6 {[%clk 0:00:07]} 34. Nxc5 {[%clk 0:00:31]}  bxc5 {[%clk 0:00:07]} 35. Nd3 {[%clk 0:00:30]}  Nd7 {[%clk 0:00:07]} 36. Nb2 {[%clk 0:00:29]}  Nb6 {[%clk 0:00:07]} 37. Nc4+ {[%clk 0:00:26]}  Nxc4 {[%clk 0:00:07]} 38. bxc4 {[%clk 0:00:26]}  a5 {[%clk 0:00:07]} 39. a4 {[%clk 0:00:26]} 1/2-1/2


[Site "https://www.chess.com"]

[Event "Titled Tuesday Blitz March 14 Early 2023"]
[White "Prudnykova, Olga"]
[Black "ritanovikova"]
[WhiteFideId "14121093"]
[WhiteElo "2113"]
[BlackElo "2117"]
[Result "0-1"]
[Round "04"]
[TimeControl "180+2"]
[Date "2023.03.14"]
[WhiteClock "0:01:04"]
[BlackClock "0:01:12"]

1. e4 {[%clk 0:03:00]}  d5 {[%clk 0:02:55]} 2. exd5 {[%clk 0:03:00]}  Qxd5 {[%clk 0:02:55]} 3. Nc3 {[%clk 0:03:00]}  Qd6 {[%clk 0:02:53]} 4. d4 {[%clk 0:02:57]}  a6 {[%clk 0:02:51]} 5. Nf3 {[%clk 0:02:47]}  Nf6 {[%clk 0:02:51]} 6. Be2 {[%clk 0:02:44]}  Bg4 {[%clk 0:02:44]} 7. O-O {[%clk 0:02:44]}  e6 {[%clk 0:02:43]} 8. h3 {[%clk 0:02:41]}  Bh5 {[%clk 0:02:42]} 9. Bg5 {[%clk 0:02:37]}  Nbd7 {[%clk 0:02:38]} 10. Qd2 {[%clk 0:02:35]}  h6 {[%clk 0:02:38]} 11. Bh4 {[%clk 0:02:34]}  Qb6 {[%clk 0:02:33]} 12. Ne5 {[%clk 0:02:19]}  Bxe2 {[%clk 0:02:28]} 13. Qxe2 {[%clk 0:02:04]}  Qxd4 {[%clk 0:02:19]} 14. Nxd7 {[%clk 0:02:01]}  Qxd7 {[%clk 0:02:15]} 15. Bxf6 {[%clk 0:01:59]}  gxf6 {[%clk 0:02:14]} 16. Rad1 {[%clk 0:01:57]}  Bd6 {[%clk 0:02:10]} 17. Ne4 {[%clk 0:01:57]}  Qe7 {[%clk 0:02:09]} 18. c4 {[%clk 0:01:43]}  f5 {[%clk 0:02:06]} 19. Nc3 {[%clk 0:01:36]}  O-O-O {[%clk 0:02:03]} 20. a3 {[%clk 0:01:36]}  Rhg8 {[%clk 0:02:00]} 21. b4 {[%clk 0:01:35]}  Qg5 {[%clk 0:01:55]} 22. g3 {[%clk 0:01:06]}  Bxg3 {[%clk 0:01:40]} 23. Rxd8+ {[%clk 0:01:04]}  Kxd8 {[%clk 0:01:12]} 0-1


[Site "https://www.chess.com"]

[Event "Titled Tuesday Blitz March 14 Early 2023"]
[White "Jimenez, Joaquin"]
[Black "Necula, Iulian"]
[WhiteFideId "109860"]
[BlackFideId "1232380"]
[WhiteElo "2163"]
[BlackElo "1790"]
[Result "0-1"]
[Round "04"]
[TimeControl "180+2"]
[Date "2023.03.14"]
[WhiteClock "0:02:14"]
[BlackClock "0:01:25"]

1. e4 {[%clk 0:03:00]}  d6 {[%clk 0:03:00]} 2. d4 {[%clk 0:02:56]}  Nf6 {[%clk 0:03:00]} 3. Nc3 {[%clk 0:02:54]}  e5 {[%clk 0:03:00]} 4. Nf3 {[%clk 0:02:53]}  Nbd7 {[%clk 0:02:59]} 5. Bc4 {[%clk 0:02:53]}  Be7 {[%clk 0:02:59]} 6. O-O {[%clk 0:02:52]}  O-O {[%clk 0:02:59]} 7. Re1 {[%clk 0:02:53]}  h6 {[%clk 0:02:59]} 8. h3 {[%clk 0:02:52]}  c6 {[%clk 0:02:59]} 9. a4 {[%clk 0:02:52]}  a5 {[%clk 0:02:57]} 10. Bf1 {[%clk 0:02:51]}  Qc7 {[%clk 0:02:58]} 11. b3 {[%clk 0:02:48]}  b6 {[%clk 0:02:57]} 12. Ba3 {[%clk 0:02:48]}  Bb7 {[%clk 0:02:56]} 13. dxe5 {[%clk 0:02:47]}  Nxe5 {[%clk 0:02:55]} 14. Nxe5 {[%clk 0:02:47]}  dxe5 {[%clk 0:02:55]} 15. Bxe7 {[%clk 0:02:47]}  Qxe7 {[%clk 0:02:55]} 16. Bc4 {[%clk 0:02:45]}  Rad8 {[%clk 0:02:53]} 17. Qf3 {[%clk 0:02:43]}  Rd2 {[%clk 0:02:34]} 18. Bd3 {[%clk 0:02:40]}  c5 {[%clk 0:02:33]} 19. Qe3 {[%clk 0:02:37]}  Rxd3 {[%clk 0:02:30]} 20. Qxd3 {[%clk 0:02:37]}  Rd8 {[%clk 0:02:29]} 21. Qb5 {[%clk 0:02:34]}  Rd2 {[%clk 0:01:59]} 22. Rac1 {[%clk 0:02:25]}  Qd6 {[%clk 0:01:43]} 23. Rcd1 {[%clk 0:02:22]}  Qd4 {[%clk 0:01:25]} 24. Qxb6 {[%clk 0:02:14]} 0-1


[Site "https://www.chess.com"]

[Event "Titled Tuesday Blitz March 14 Early 2023"]
[White "Fajdetic, Hrvoje"]
[Black "Zhurova, Anna"]
[WhiteFideId "14501945"]
[BlackFideId "54113075"]
[WhiteElo "2185"]
[BlackElo "2031"]
[Result "1-0"]
[Round "04"]
[TimeControl "180+2"]
[Date "2023.03.14"]
[WhiteClock "0:00:48"]
[BlackClock "0:00:07"]

1. f4 {[%clk 0:02:56]}  d5 {[%clk 0:02:58]} 2. Nf3 {[%clk 0:02:56]}  c5 {[%clk 0:02:54]} 3. e3 {[%clk 0:02:56]}  Nc6 {[%clk 0:02:53]} 4. Bb5 {[%clk 0:02:56]}  Bd7 {[%clk 0:02:53]} 5. Bxc6 {[%clk 0:02:55]}  Bxc6 {[%clk 0:02:39]} 6. b3 {[%clk 0:02:56]}  Nf6 {[%clk 0:02:36]} 7. Bb2 {[%clk 0:02:56]}  e6 {[%clk 0:02:36]} 8. O-O {[%clk 0:02:56]}  Be7 {[%clk 0:02:35]} 9. d3 {[%clk 0:02:55]}  O-O {[%clk 0:02:33]} 10. Nbd2 {[%clk 0:02:54]}  b5 {[%clk 0:02:30]} 11. Ne5 {[%clk 0:02:53]}  Rc8 {[%clk 0:02:24]} 12. a4 {[%clk 0:02:51]}  bxa4 {[%clk 0:02:20]} 13. Nxc6 {[%clk 0:02:51]}  Rxc6 {[%clk 0:02:19]} 14. Rxa4 {[%clk 0:02:52]}  Qb6 {[%clk 0:02:13]} 15. Qa1 {[%clk 0:02:51]}  c4 {[%clk 0:02:12]} 16. Bd4 {[%clk 0:02:48]}  Bc5 {[%clk 0:02:11]} 17. dxc4 {[%clk 0:02:29]}  dxc4 {[%clk 0:02:07]} 18. Nxc4 {[%clk 0:02:27]}  Qb8 {[%clk 0:01:37]} 19. Bxc5 {[%clk 0:02:21]}  Rxc5 {[%clk 0:01:36]} 20. Rxa7 {[%clk 0:02:16]}  Rd8 {[%clk 0:01:27]} 21. Qa3 {[%clk 0:01:48]}  Rc7 {[%clk 0:00:52]} 22. Ra1 {[%clk 0:01:36]}  Qc8 {[%clk 0:00:20]} 23. Rxc7 {[%clk 0:01:25]}  Qxc7 {[%clk 0:00:20]} 24. Qa5 {[%clk 0:01:25]}  Qd7 {[%clk 0:00:20]} 25. Ne5 {[%clk 0:01:22]}  Qd6 {[%clk 0:00:18]} 26. Qa7 {[%clk 0:01:17]}  Rf8 {[%clk 0:00:17]} 27. Qd4 {[%clk 0:01:13]}  Qc7 {[%clk 0:00:15]} 28. c4 {[%clk 0:01:12]}  Rd8 {[%clk 0:00:14]} 29. Qc3 {[%clk 0:01:11]}  Nd5 {[%clk 0:00:12]} 30. Qa5 {[%clk 0:01:09]}  Qxa5 {[%clk 0:00:11]} 31. Rxa5 {[%clk 0:01:09]}  Nxe3 {[%clk 0:00:11]} 32. Nc6 {[%clk 0:01:04]}  Re8 {[%clk 0:00:10]} 33. Kf2 {[%clk 0:00:53]}  Nc2 {[%clk 0:00:07]} 34. Ra2 {[%clk 0:00:48]} 1-0


[Site "https://www.chess.com"]